fUST/lending_fUST_20251209
["ID","MTS","AMOUNT","RATE_DAILY","PERIOD"]
[397978343,1765262339073,-2926.64,0.00043723,30]
[397978344,1765262339108,-1000.0,0.000438,90]
[397978345,1765262339144,-172.0,0.000438,120]
[397978346,1765262339179,-400.0,0.00044,120]
[397978347,1765262339212,-500.0,0.00044,120]
[397978348,1765262339246,-2463.59,0.000442,120]
[397978349,1765262339283,-172.0,0.000444,120]
[397978350,1765262339328,-250.0,0.000445,120]
[397978351,1765262339366,-864.14,0.0004452,30]
[397978352,1765262339418,-321.0,0.0004455,120]
[397978353,1765262339455,-200.0,0.00044621,120]
[397978354,1765262339488,-415.97277972,0.000447,60]
[397978355,1765262339524,-30000.0,0.0004489,30]
[397978356,1765262339561,-157.6836991,0.000449,120]
[397978357,1765262339601,-172.0,0.00045,120]
[397978358,1765262339648,-494.43468739,0.00045,120]
[397978359,1765262339688,-1010.18429054,0.00045,120]
[397978360,1765262339728,-505.20207901,0.00045,120]
[397978361,1765262339768,-212.81043238,0.00045,90]
[397978362,1765262339804,-996.41555594,0.00045,120]
[397978363,1765262339842,-571.43822448,0.00045,120]
[397978364,1765262339880,-1190.28141623,0.00045,120]
[397978365,1765262339920,-1239.83618841,0.00045,120]
[397978366,1765262339960,-1607.14150597,0.00045,120]
[397978367,1765262339996,-201.44607411,0.00045,120]
[397978368,1765262340036,-90034.28729371,0.00045,30]
[397978369,1765262340079,-700.0,0.00045,120]
[397978370,1765262340120,-635.0,0.00045,120]
[397978371,1765262340161,-1000.0,0.00045,120]
[397978372,1765262340203,-260.69999993,0.00045,120]
[397978373,1765262340245,-500.0,0.00045,120]
[397978374,1765262340284,-399999.999999,0.00045,30]
[397978375,1765262340324,-5000.0,0.00045,60]
[397978376,1765262340361,-1200.0,0.00045,30]
[397978377,1765262340400,-200.0,0.00045045,120]
[397978378,1765262340436,-1291.26682,0.00045205,120]
[397978379,1765262340471,-152.0,0.0004526,120]
[397978380,1765262340506,-1172.57845711,0.000454,120]
[397978381,1765262340542,-864.14,0.00045424,30]
[397978382,1765262340578,-522639.6526,0.0004544,30]
[397978383,1765262340614,-250.0,0.000455,120]
[397978384,1765262340650,-172.0,0.000457,120]
[397978385,1765262340689,-283.19310699,0.000458,120]
[397978386,1765262340725,-2398.13445631,0.000459,120]
[397978387,1765262340761,-15596.81854007,0.0004594,120]
[397978388,1765262340796,-816.78530635,0.00046,30]
[397978389,1765262340833,-400.0,0.00046,120]
[397978390,1765262340869,-500.0,0.00046,120]
[397978391,1765262340906,-10000.0,0.00046,120]
[397978392,1765262340940,-179.87408814,0.00046233,34]
[397978393,1765262340975,-172.0,0.000463,120]
[397978394,1765262341009,-864.14,0.00046328,30]
[397978395,1765262341044,-200.0,0.00046427,120]
[397978396,1765262341095,-250.0,0.000465,120]
[397978397,1765262341133,-1000.0,0.000466,120]
[397978398,1765262341169,-1000.0,0.000466,120]
[397978399,1765262341203,-184.18214366,0.000468,120]
[397978400,1765262341239,-200.0,0.0004683,120]
[397978401,1765262341274,-172.0,0.000469,120]
[397978402,1765262341313,-200.0,0.00046938,120]
[397978403,1765262341348,-1982.68,0.00047,120]
[397978404,1765262341384,-800.0,0.00047,120]
[397978405,1765262341417,-500.0,0.00047,120]
[397978406,1765262341451,-1000.0,0.00047,120]
[397978407,1765262341485,-200.0,0.00047037,120]
[397978408,1765262341520,-200.0,0.00047128,120]
[397978409,1765262341554,-864.14,0.00047232,30]
[397978410,1765262341589,-200.0,0.00047252,120]
[397978411,1765262341626,-250.0,0.00047475,120]
[397978412,1765262341662,-172.0,0.000475,120]
[397978413,1765262341699,-250.0,0.000475,120]
[397978414,1765262341741,-200.0,0.00047516,120]
[397978415,1765262341777,-2060.0,0.000479,120]
[397978416,1765262341815,-1000.0,0.00047999,120]
[397978417,1765262341850,-812.29477056,0.00048,120]
[397978418,1765262341887,-306.78759913,0.00048,120]
[397978419,1765262341925,-400.0,0.00048,120]
[397978420,1765262341961,-1000.0,0.00048,120]
[397978421,1765262341996,-500.0,0.00048,120]
[397978422,1765262342032,-864.14,0.00048136,30]
[397978423,1765262342069,-172.0,0.000482,120]
[397978424,1765262342106,-3367.82166816,0.00048398,120]
[397978425,1765262342145,-1171.15235282,0.000484,60]
[397978426,1765262342185,-250.0,0.000485,120]
[397978427,1765262342225,-200.0,0.00048612,120]
[397978428,1765262342265,-200.0,0.00048668,120]
[397978429,1765262342304,-993.39051965,0.000487,120]
[397978430,1765262342348,-172.0,0.000488,120]
[397978431,1765262342389,-3039.81540069,0.00048875,60]
[397978432,1765262342428,-1061.13227928,0.00048887,90]
[397978433,1765262342468,-200.0,0.000489,120]
[397978434,1765262342506,-2062.1536735,0.000489,120]
[397978435,1765262342545,-481.86,0.000489,120]
[397978436,1765262342592,-5415.82,0.00049,30]
[397978437,1765262342638,-500.0,0.00049,120]
[397978438,1765262342679,-500.0,0.00049,120]
[397978439,1765262342720,-2229.75721145,0.00049,120]
[397978440,1765262346996,-213.0,0.00029507,34]
[397978441,1765262347037,-163.0,0.00031699,48]
[397978442,1765262347099,-2000.0,0.00041192,60]
[397978443,1765262347136,-2000.0,0.00042288,60]
[397978444,1765262347176,-347.30356795,0.000424,120]
[397978445,1765262347220,-2000.0,0.00043384,60]
[397978446,1765262347257,-2000.0,0.0004448,60]
[397978447,1765262347295,-2000.0,0.00045576,60]
[397978448,1765262347333,-2000.0,0.00046672,60]
[397978449,1765262347370,-2000.0,0.00047768,60]
[397978450,1765262347406,-2000.0,0.00048864,60]
[397978451,1765262347443,-1244.24278855,0.00049,120]
[397978452,1765262347479,-10000.0,0.00049,120]
[397978453,1765262347514,-864.14,0.00049041,30]
[397978454,1765262347551,-200.0,0.00049181,120]
[397978455,1765262347587,-1000.0,0.00049315,120]
[397978456,1765262347622,-1000.0,0.00049315,120]
[397978457,1765262347660,-1000.0,0.00049315,120]
[397978458,1765262347697,-1000.0,0.00049315,120]
[397978459,1765262347735,-1000.0,0.00049315,120]
[397978460,1765262347774,-1000.0,0.00049315,120]
[397978461,1765262347813,-1000.0,0.00049315,120]
[397978462,1765262347851,-1000.0,0.00049315,120]
[397978463,1765262347889,-1000.0,0.00049315,120]
[397978464,1765262347926,-1000.0,0.00049315,120]
[397978465,1765262347970,-1000.0,0.00049315,120]
[397978466,1765262348012,-438.80682993,0.00049315,120]
[397978467,1765262348055,-200.0,0.00049364,120]
[397978468,1765262348102,-172.0,0.000494,120]
[397978469,1765262348146,-813.95753623,0.0004943,120]
[397978470,1765262348190,-3841459.2218,0.00049444,30]
[397978471,1765262348231,-152.0,0.0004948,120]
[397978472,1765262348272,-200.0,0.00049542,120]
[397978473,1765262348312,-10000.0,0.0004957,120]
[397978474,1765262348355,-2429.0,0.00049589,120]
[397978475,1765262348396,-483.36057579,0.000496,120]
[397978476,1765262348439,-675.13,0.00049613,30]
[397978477,1765262348483,-1324.64,0.00049613,30]
[397978478,1765262348524,-582.95,0.00049613,30]
[397978479,1765262348566,-181.33,0.00049613,30]
[397978480,1765262348612,-864.14,0.00049945,30]
[397978481,1765262348655,-2000.0,0.0004996,60]
[397978482,1765262348697,-1000.0,0.00049999,120]
[397978483,1765262348745,-500.0,0.00049999,30]
[397978484,1765262348789,-324.03476413,0.00049999,30]
[397978485,1765262348832,-500.0,0.00049999,30]
[397978486,1765262348875,-2312.83697232,0.00049999,30]
[397978487,1765262348917,-151.0,0.00049999,30]
[397978488,1765262348960,-1111.0,0.0005,120]
[397978489,1765262349003,-172.0,0.0005,120]
[397978490,1765262349047,-1345.74414814,0.0005,120]
[397978491,1765262349092,-824.86997916,0.0005,120]
[397978492,1765262349144,-555.23069871,0.0005,120]
[397978493,1765262349187,-30850.4073454,0.0005,120]
[397978494,1765262349229,-189.34690545,0.0005,120]
[397978495,1765262349271,-630.68429585,0.0005,120]
[397978496,1765262349311,-225.39936756,0.0005,120]
[397978497,1765262349350,-564.00494335,0.0005,120]
[397978498,1765262349392,-400.0,0.0005,120]
[397978499,1765262349433,-8012.733569,0.0005,120]
[397978500,1765262349472,-48322.48391248,0.0005,120]
[397978501,1765262357184,-577.0,0.0004,30]
[397978502,1765262357226,-546383.60076934,0.0005,120]
[397978503,1765262357263,-1998.27379418,0.0005,120]
[397978504,1765262357299,-500.0,0.0005,120]
[397978505,1765262357335,-2000.0,0.0005,120]
[397978506,1765262357372,-2000.0,0.0005,120]
[397978507,1765262357424,-2000.0,0.0005,120]
[397978508,1765262357464,-1705.0,0.0005,120]
[397978509,1765262357501,-5592.1666625,0.0005,120]
[397978510,1765262357539,-8918.0,0.0005,120]
[397978511,1765262357577,-217.0,0.0005,120]
[397978512,1765262357616,-741.28730994,0.0005,120]
[397978513,1765262357655,-277.903,0.0005,120]
[397978514,1765262357695,-3644.22,0.0005,120]
[397978515,1765262357736,-5000.0,0.0005,120]
[397978516,1765262357776,-200.0,0.0005,120]
[397978517,1765262357813,-883.22844187,0.0005,120]
[397978518,1765262357852,-347.30356795,0.0005,30]
[397978519,1765262357889,-347.30356795,0.0005,120]
[397978520,1765262357929,-577.0,0.0005,60]
[397978521,1765262357968,-200.0,0.00050319,120]
[397978522,1765262358007,-200.0,0.00050436,120]
[397978523,1765262358042,-151.0,0.000506,30]
[397978524,1765262358077,-172.0,0.000507,120]
[397978525,1765262358112,-864.14,0.00050849,30]
[397978526,1765262358147,-50000.0,0.000509,120]
[397978527,1765262358184,-1000.0,0.00050999,120]
[397978528,1765262358219,-14143.0,0.00051,120]
[397978529,1765262358254,-556.95638321,0.00051,120]
[397978530,1765262358290,-500.0,0.00051,120]
[397978531,1765262358325,-500.0,0.00051,120]
[397978532,1765262358361,-200.0,0.00051,120]
[397978533,1765262358396,-251.31321636,0.00051056,60]
[397978534,1765262358431,-210.0,0.0005119,30]
[397978535,1765262358465,-172.0,0.000513,120]
[397978536,1765262358500,-347.30356795,0.000515,30]
[397978537,1765262358534,-347.30356795,0.000515,120]
[397978538,1765262358568,-864.3652208,0.00051753,30]
[397978539,1765262358604,-200.0,0.00051875,120]
[397978540,1765262358645,-172.0,0.000519,120]
[397978541,1765262358681,-50000.0,0.000519,120]
[397978542,1765262358721,-200.0,0.00051946,120]
[397978543,1765262358759,-200.0,0.00051965,120]
[397978544,1765262358799,-400.0,0.00052,120]
[397978545,1765262358835,-1000.0,0.00052,120]
[397978546,1765262358870,-500.30831525,0.00052,120]
[397978547,1765262358906,-500.0,0.00052,120]
[397978548,1765262358942,-6000.0,0.00052,30]
[397978549,1765262358978,-135472.29541873,0.00052,120]
[397978550,1765262359015,-200.0,0.00052,120]
[397978551,1765262359050,-500.0,0.00052055,30]
[397978552,1765262359086,-151.0,0.00052055,30]
[397978553,1765262359121,-250.0,0.00052055,30]
[397978554,1765262359157,-250.0,0.00052055,30]
[397978555,1765262359193,-3000.0,0.00052055,30]
[397978556,1765262359229,-3888.0,0.00052055,30]
[397978557,1765262359262,-151.0,0.00052055,30]
[397978558,1765262359296,-250.0,0.00052055,30]
[397978559,1765262359329,-500.0,0.00052055,30]
[397978560,1765262359364,-414.0,0.00052055,30]
[397978561,1765262359398,-500.0,0.00052055,30]
[397978562,1765262359433,-151.0,0.00052055,30]
[397978563,1765262359467,-250.0,0.00052055,30]
[397978564,1765262359501,-250.0,0.00052055,30]
[397978565,1765262359537,-3000.0,0.00052055,30]
[397978566,1765262359572,-4031.856,0.00052055,30]
[397978567,1765262359608,-156.587,0.00052055,30]
[397978568,1765262359647,-250.0,0.00052055,30]
[397978569,1765262359685,-500.0,0.00052055,30]
[397978570,1765262359732,-500.23457275,0.00052055,30]
[397978571,1765262359779,-500.0,0.00052055,30]
[397978572,1765262359823,-151.0,0.00052055,30]
[397978573,1765262359867,-250.0,0.00052055,30]
[397978574,1765262359913,-250.0,0.00052055,30]
[397978575,1765262359957,-4181.034672,0.00052055,30]
[397978576,1765262359998,-3000.0,0.00052055,30]
[397978577,1765262360038,-162.380719,0.00052055,30]
[397978578,1765262360076,-250.75484629,0.00052055,30]
[397978579,1765262360114,-500.0,0.00052055,30]
[397978580,1765262360152,-500.0,0.00052055,30]
[397978581,1765262360190,-151.0,0.00052055,30]
[397978582,1765262360227,-250.0,0.00052055,30]
[397978583,1765262360262,-250.0,0.00052055,30]
[397978584,1765262360297,-3033.5770317,0.00052055,30]
[397978585,1765262360332,-168.3888056,0.00052055,30]
[397978586,1765262360368,-4335.73295486,0.00052055,30]
[397978587,1765262360405,-500.0,0.00052055,30]
[397978588,1765262360444,-151.0,0.00052055,30]
[397978589,1765262360479,-250.0,0.00052055,30]
[397978590,1765262360515,-256.69593047,0.00052055,30]
[397978591,1765262360556,-174.61919141,0.00052055,30]
[397978592,1765262360595,-4496.15507419,0.00052055,30]
[397978593,1765262360636,-500.0,0.00052055,30]
[397978594,1765262360672,-152.63882303,0.00052055,30]
[397978595,1765262360708,-310.26643614,0.00052055,30]
[397978596,1765262360744,-500.0,0.00052055,30]
[397978597,1765262360779,-160.11034479,0.00052055,30]
[397978598,1765262361007,-400.0,0.00052055,30]
[397978599,1765262361041,-2000.0,0.00052055,30]
[397978600,1765262361078,-151.0,0.00052055,30]
[397978601,1765262361113,-400.0,0.00052055,30]
[397978602,1765262361148,-2074.0,0.00052055,30]
[397978603,1765262361182,-156.587,0.00052055,30]
[397978604,1765262361217,-533.83126551,0.00052055,30]
[397978605,1765262361251,-500.0,0.00052055,30]
[397978606,1765262361286,-2150.738,0.00052055,30]
[397978607,1765262361321,-162.380719,0.00052055,30]
[397978608,1765262361355,-500.0,0.00052055,30]
[397978609,1765262361392,-2230.315306,0.00052055,30]
[397978610,1765262361427,-168.3888056,0.00052055,30]
[397978611,1765262361462,-500.0,0.00052055,30]
[397978612,1765262361495,-866.60652711,0.00052055,30]
[397978613,1765262361532,-2312.83697232,0.00052055,30]
[397978614,1765262361570,-151.0,0.00052055,30]
[397978615,1765262361608,-500.0,0.00052055,30]
[397978616,1765262361646,-2398.4119403,0.00052055,30]
[397978617,1765262361680,-151.0,0.00052055,30]
[397978618,1765262361720,-2487.15318209,0.00052055,30]
[397978619,1765262361756,-151.0,0.00052055,30]
[397978620,1765262361792,-500.0,0.00052055,30]
[397978621,1765262361827,-675.13,0.00052093,30]
[397978622,1765262361863,-1324.64,0.00052093,30]
[397978623,1765262361898,-582.95,0.00052093,30]
[397978624,1765262361932,-5000.0,0.000522,120]
[397978625,1765262361968,-435533.0438,0.0005244,120]
[397978626,1765262362003,-210.0,0.0005249,30]
[397978627,1765262362037,-1000.0,0.00052499,120]
[397978628,1765262362072,-6868.10416562,0.000525,120]
[397978629,1765262362108,-200.0,0.00052574,120]
[397978630,1765262362145,-172.0,0.000526,120]
[397978631,1765262362183,-200.0,0.00052709,120]
[397978632,1765262362221,-40000.0,0.0005299,120]
[397978633,1765262362257,-200.0,0.00052992,120]
[397978634,1765262362296,-256.0912707,0.00053,120]
[397978635,1765262362333,-881.76750195,0.00053,120]
[397978636,1765262362370,-164.26392096,0.00053,120]
[397978637,1765262362406,-4975.77961055,0.00053,120]
[397978638,1765262362444,-500.0,0.00053,120]
[397978639,1765262362480,-500.0,0.00053,120]
[397978640,1765262362515,-1000.0,0.00053,120]
[397978641,1765262362550,-1999999.99999966,0.00053,60]
[397978642,1765262362587,-200.0,0.00053,120]
[397978643,1765262362624,-347.30356795,0.00053,30]
[397978644,1765262362661,-172.0,0.000532,120]
[397978645,1765262362702,-821.19,0.000532,120]
[397978646,1765262362740,-214714.0537466,0.00053295,120]
[397978647,1765262362777,-10000.0,0.000534,120]
[397978648,1765262362815,-209985.10049812,0.00053489,120]
[397978649,1765262362853,-879.22299337,0.000535,120]
[397978650,1765262362890,-152.0,0.00053699,120]
[397978651,1765262362929,-500.0,0.000537,120]
[397978652,1765262362970,-210.0,0.0005379,30]
[397978653,1765262363004,-172.0,0.000538,120]
[397978654,1765262363040,-878.61549732,0.0005388,30]
[397978655,1765262363076,-1000.0,0.00053999,120]
[397978656,1765262363112,-687.62412635,0.00054,120]
[397978657,1765262363148,-300.0,0.00054,120]
[397978658,1765262363184,-801.91436677,0.00054,120]
[397978659,1765262363220,-500.0,0.00054,120]
[397978660,1765262363257,-240.8879416,0.00054,120]
[397978661,1765262363293,-51260.0564136,0.00054,60]
[397978662,1765262363330,-157.43498979,0.00054,120]
[397978663,1765262363365,-151.00836574,0.00054,120]
[397978664,1765262363400,-248.14191937,0.00054,120]
[397978665,1765262363434,-154.53159035,0.00054,120]
[397978666,1765262363469,-200.0,0.00054,120]
[397978667,1765262363504,-89815.58878949,0.0005418,120]
[397978668,1765262368073,-150.0,0.00028388,30]
[397978669,1765262368117,-236.69,0.00029739,30]
[397978670,1765262368159,-355.04,0.00031091,30]
[397978671,1765262368209,-591.73,0.00033795,30]
[397978672,1765262368254,-710.07,0.00035146,30]
[397978673,1765262368314,-828.42,0.00036498,30]
[397978674,1765262368354,-4334.66,0.00037,30]
[397978675,1765262368394,-946.77,0.0003785,30]
[397978676,1765262368435,-1065.11,0.00039202,30]
[397978677,1765262368472,-289.0,0.0004,30]
[397978678,1765262368508,-1151.8,0.00040554,30]
[397978679,1765262368544,-4334.66,0.00044,30]
[397978680,1765262368583,-347.30356795,0.0005,120]
[397978681,1765262368620,-4334.66,0.00051,30]
[397978682,1765262368657,-2579.17784983,0.00052055,30]
[397978683,1765262368693,-151.0,0.00052055,30]
[397978684,1765262368730,-500.0,0.00052055,30]
[397978685,1765262368767,-2674.60743027,0.00052055,30]
[397978686,1765262368805,-153.40584631,0.00052055,30]
[397978687,1765262368844,-500.0,0.00052055,30]
[397978688,1765262368883,-500.0,0.00052055,30]
[397978689,1765262368920,-2773.56790519,0.00052055,30]
[397978690,1765262368956,-500.0,0.00052055,30]
[397978691,1765262368992,-2876.18991768,0.00052055,30]
[397978692,1765262369026,-502.73033241,0.00052055,30]
[397978693,1765262369063,-500.0,0.00052055,30]
[397978694,1765262369098,-388.93557312,0.00052055,30]
[397978695,1765262369133,-500.0,0.00052055,30]
[397978696,1765262369168,-3367715.59168652,0.0005418,120]
[397978697,1765262369204,-289.0,0.0005418,120]
[397978698,1765262369238,-295.55048023,0.000542,120]
[397978699,1765262369274,-172.0,0.000544,120]
[397978700,1765262369308,-1000.0,0.00054443,120]
[397978701,1765262369346,-151.0,0.00054496,85]
[397978702,1765262369381,-2000.0,0.00054499,120]
[397978703,1765262369418,-151.0,0.00054499,120]
[397978704,1765262369457,-2000.0,0.00054519,30]
[397978705,1765262369492,-151.0,0.00054519,30]
[397978706,1765262369833,144516.29981106,0.0005443,30]
[397978707,1765262372176,574.5,0.0004,30]
[397978708,1765262375850,762.0,0.00054179,120]
[397978709,1765262376124,762.0,0.00054179,120]
[397978710,1765262376256,151.0,0.00054179,120]
[397978711,1765262376328,151.0,0.00054179,120]
[397978712,1765262376426,151.0,0.00054179,120]
[397978713,1765262376469,762.0,0.00054179,120]
[397978714,1765262376513,151.0,0.00054179,120]
[397978715,1765262376597,151.80978876,0.00054179,120]
[397978716,1765262376650,762.0,0.00054179,120]
[397978717,1765262376713,151.0,0.00054179,120]
[397978718,1765262376840,240.61006181,0.00054179,120]
[397978719,1765262376995,762.0,0.00054179,120]
[397978720,1765262377217,151.0,0.00054179,120]
[397978721,1765262377379,151.0,0.00054179,120]
[397978722,1765262377475,762.0,0.00054179,120]
[397978723,1765262377748,151.0,0.00054179,120]
[397978724,1765262377873,151.0,0.00054179,120]
[397978725,1765262377929,194.64025336,0.00054179,120]
[397978726,1765262378049,151.0,0.00054179,120]
[397978727,1765262378231,151.0,0.00054179,120]
[397978728,1765262378295,762.0,0.00054179,120]
[397978729,1765262378338,238.37358599,0.00054179,120]
[397978730,1765262378649,151.0,0.00054179,120]
[397978731,1765262378830,151.0,0.00054179,120]
[397978732,1765262378873,247.86319052,0.00054179,120]
[397978733,1765262379007,151.0,0.00054179,120]
[397978734,1765262379176,151.0,0.00054179,120]
[397978735,1765262379342,762.0,0.00054179,120]
[397978736,1765262379389,180.19532009,0.00054179,120]
[397978737,1765262379696,500.0,0.00054179,120]
[397978738,1765262379832,500.0,0.00054179,120]
[397978739,1765262380023,500.0,0.00054179,120]
[397978740,1765262380139,416229.0388319,0.0005443,30]
[397978741,1765262380182,500.0,0.00054179,120]
[397978742,1765262380224,500.0,0.00054179,120]
[397978743,1765262380335,500.0,0.00054179,120]
[397978744,1765262380375,500.0,0.00054179,120]
[397978745,1765262380498,500.0,0.00054179,120]
[397978746,1765262380550,500.0,0.00054179,120]
[397978747,1765262380673,500.0,0.00054179,120]
[397978748,1765262380715,762.0,0.00054179,120]
[397978749,1765262380757,538.21274117,0.00054179,120]
[397978750,1765262380860,500.0,0.00054179,120]
[397978751,1765262380970,500.0,0.00054179,120]
[397978752,1765262381018,500.0,0.00054179,120]
[397981574,1765262740125,-300.0,6.563e-05,2]
[397981575,1765262740145,-469.59661068,6.564e-05,2]
[397981577,1765263032460,-505.3698827,5.9e-05,2]
[397981578,1765263032469,-105.57921585,5.9e-05,2]
[397981579,1765263032480,-399.42078415,5.9e-05,2]
[397981580,1765263032489,-300.0,6.563e-05,2]
[397981581,1765263032497,-2156.0,6.564e-05,2]
[397981582,1765263032506,-1360.0,6.564e-05,2]
[397981583,1765263032515,-631.0,6.564e-05,2]
[397981584,1765263032524,-300.0,6.694e-05,2]
[397981585,1765263032532,-300.0,6.694e-05,2]
[397981586,1765263032542,-300.0,6.694e-05,2]
[397981587,1765263032551,-300.0,6.694e-05,2]
[397981588,1765263032560,-300.0,6.694e-05,2]
[397981589,1765263032569,-300.0,6.694e-05,2]
[397981590,1765263032578,-300.0,6.694e-05,2]
[397981591,1765263032587,-300.0,6.694e-05,2]
[397981592,1765263032596,-300.0,6.694e-05,2]
[397981593,1765263032605,-300.0,6.694e-05,2]
[397981594,1765263032614,-300.0,6.694e-05,2]
[397981595,1765263032623,-300.0,6.694e-05,2]
[397981596,1765263032632,-300.0,6.694e-05,2]
[397981597,1765263032641,-300.0,6.694e-05,2]
[397981598,1765263032650,-300.0,6.694e-05,2]
[397981599,1765263032659,-329.31661636,6.822e-05,2]
[397981600,1765263032668,-431.21821472,6.822e-05,2]
[397981601,1765263032677,-5202.6399204,6.823e-05,2]
[397981602,1765263032688,-4624.983028,6.823e-05,2]
[397981603,1765263032705,-374.4572225,6.823e-05,2]
[397981604,1765263032716,-42952.34623189,6.823e-05,2]
[397981605,1765263032727,-607.2429137,6.823e-05,2]
[397981710,1765263039346,-4412.03878659,6.823e-05,2]
[397981712,1765263039357,-673.35,6.823e-05,2]
[397981719,1765263039416,-4670.6585885,6.823e-05,2]
[397981722,1765263039430,-863.94,6.823e-05,2]
[397981726,1765263039468,-4148.09067191,6.823e-05,2]
[397981863,1765263040861,-3580.0,6.823e-05,2]
[397981871,1765263040931,-3999.998655,6.823e-05,2]
[397982516,1765263048417,-695.316296,6.823e-05,2]
[397982518,1765263048430,-813194.93768551,6.823e-05,2]
[397982521,1765263048441,-250.0,6.922e-05,2]
[397982523,1765263048451,-600.0,7.06e-05,2]
[397982525,1765263048461,-153.0,7.06e-05,2]
[397982527,1765263048470,-216.3013922,7.08e-05,2]
[397982529,1765263048480,-153.0,7.08e-05,2]
[397982531,1765263048490,-153.0,7.08e-05,2]
[397982532,1765263048499,-500.0,7.1e-05,2]
[397982535,1765263048508,-153.0,7.1e-05,2]
[397982537,1765263048518,-153.0,7.1e-05,2]
[397982539,1765263048528,-153.0,7.1e-05,2]
[397982541,1765263048537,-153.0,7.1e-05,2]
[397982542,1765263048547,-153.0,7.1e-05,2]
[397982544,1765263048556,-153.0,7.1e-05,2]
[397982546,1765263048565,-153.449521,7.1e-05,2]
[397982549,1765263048575,-501.57726876,7.123e-05,2]
[397982551,1765263048584,-500.0,7.123e-05,2]
[397982552,1765263048593,-500.0,7.123e-05,2]
[397982554,1765263048603,-500.0,7.123e-05,2]
[397982557,1765263048612,-500.0,7.123e-05,2]
[397982558,1765263048622,-500.0,7.123e-05,2]
[397982560,1765263048631,-500.0,7.123e-05,2]
[397982562,1765263048640,-500.0,7.123e-05,2]
[397982564,1765263048650,-500.0,7.123e-05,2]
[397982566,1765263048659,-500.0,7.123e-05,2]
[397982568,1765263048668,-500.0,7.123e-05,2]
[397982570,1765263048677,-500.0,7.123e-05,2]
[397982572,1765263048687,-469.93040801,7.123e-05,2]
[397982574,1765263048696,-500.0,7.123e-05,2]
[397982576,1765263048705,-500.0,7.123e-05,2]
[397982578,1765263048715,-500.0,7.123e-05,2]
[397982580,1765263048724,-1015.52,7.123e-05,2]
[397982582,1765263048734,-500.0,7.123e-05,2]
[397982584,1765263048743,-500.0,7.123e-05,2]
[397982586,1765263048753,-925.62,7.123e-05,2]
[397982588,1765263048762,-743.93,7.123e-05,2]
[397982590,1765263048771,-576.89438462,7.123e-05,2]
[397982592,1765263048780,-500.0,7.123e-05,2]
[397982594,1765263048789,-654.42,7.123e-05,2]
[397982596,1765263048799,-501.44178285,7.123e-05,2]
[397982598,1765263048808,-592.85615394,7.123e-05,2]
[397982600,1765263048818,-500.0,7.123e-05,2]
[397982602,1765263048827,-500.0,7.123e-05,2]
[397982604,1765263048836,-500.0,7.123e-05,2]
[397982606,1765263048845,-500.0,7.123e-05,2]
[397982608,1765263048854,-500.0,7.123e-05,2]
[397982609,1765263048864,-803.61,7.123e-05,2]
[397982611,1765263048874,-500.0,7.123e-05,2]
[397982613,1765263048885,-500.0,7.123e-05,2]
[397982616,1765263048895,-528.77,7.123e-05,2]
[397982617,1765263048905,-778.89,7.123e-05,2]